fUST/lending_fUST_20250225
["ID","MTS","AMOUNT","RATE_DAILY","PERIOD"]
[354427882,1740486642542,-5000.0,0.00054794,14]
[354427883,1740486642552,-1000.0,0.00054794,2]
[354427884,1740486642562,-5000.0,0.00054794,14]
[354427886,1740486642571,-5000.0,0.00054794,14]
[354427887,1740486642581,-5000.0,0.00054794,14]
[354427888,1740486642590,-500.0,0.00054794,120]
[354427889,1740486642600,-5000.0,0.00054794,14]
[354427890,1740486642609,-18506.92,0.00054794,120]
[354427891,1740486642619,-695.05,0.00054794,120]
[354427893,1740486642629,-431.4181011,0.00054794,120]
[354427894,1740486642638,-500.0,0.00054794,120]
[354427895,1740486642648,-500.0,0.00054794,120]
[354427896,1740486642657,-500.0,0.00054794,120]
[354427897,1740486642667,-500.0,0.00054794,2]
[354427898,1740486642676,-500.0,0.00054794,120]
[354427899,1740486642685,-708.39,0.00054794,120]
[354427900,1740486642695,-500.0,0.00054794,120]
[354427901,1740486642704,-500.0,0.00054794,120]
[354427902,1740486642714,-4183.1,0.00054794,120]
[354427903,1740486642724,-308.9463023,0.00054794,120]
[354427904,1740486642736,-500.0,0.00054794,120]
[354427906,1740486642745,-500.37931707,0.00054794,120]
[354427907,1740486642755,-500.0,0.00054794,120]
[354427908,1740486642765,-584.81,0.00054794,120]
[354427909,1740486642774,-500.0,0.00054794,120]
[354427910,1740486642785,-500.90415006,0.00054794,120]
[354427911,1740486642796,-500.0,0.00054794,120]
[354427912,1740486642806,-25764.85,0.00054794,120]
[354427913,1740486642816,-500.0,0.00054794,120]
[354427914,1740486642826,-500.0,0.00054794,120]
[354427915,1740486642835,-500.0,0.00054794,120]
[354427916,1740486642845,-500.0,0.00054794,120]
[354427917,1740486642855,-500.0,0.00054794,120]
[354427918,1740486642865,-500.26961148,0.00054794,120]
[354427919,1740486642875,-500.0,0.00054794,120]
[354427920,1740486642885,-500.0,0.00054794,120]
[354427921,1740486642895,-502.92774363,0.00054794,120]
[354427922,1740486642904,-535.8,0.00054794,120]
[354427923,1740486642914,-500.0,0.00054794,120]
[354427924,1740486642923,-500.0,0.00054794,21]
[354427925,1740486642932,-500.0,0.00054794,120]
[354427926,1740486642942,-805.15,0.00054794,120]
[354427927,1740486642951,-1000.0,0.00054794,20]
[354427928,1740486642960,-501.66100991,0.00054794,120]
[354427929,1740486642970,-500.0,0.00054794,120]
[354427930,1740486642980,-500.0,0.00054794,120]
[354427931,1740486642990,-2142.62,0.00054794,120]
[354427932,1740486643000,-500.0,0.00054794,120]
[354427933,1740486643009,-500.0,0.00054794,120]
[354427934,1740486643020,-733.44,0.00054794,120]
[354427935,1740486643029,-500.0,0.00054794,120]
[354427936,1740486643039,-633.81,0.00054794,120]
[354427937,1740486643049,-648.42768245,0.00054794,120]
[354427938,1740486643059,-500.0,0.00054794,120]
[354427939,1740486643068,-574.98,0.00054794,120]
[354427941,1740486643078,-500.0,0.00054794,120]
[354427943,1740486643087,-500.0,0.00054794,120]
[354427946,1740486643098,-1864.83,0.00054794,120]
[354427947,1740486643108,-500.0,0.00054794,120]
[354427950,1740486643119,-500.0,0.00054794,120]
[354427952,1740486643128,-502.1553688,0.00054794,120]
[354427954,1740486643138,-27694.65,0.00054794,6]
[354427955,1740486643147,-743.57,0.00054794,120]
[354427958,1740486643158,-500.0,0.00054794,120]
[354427959,1740486643168,-501.35418177,0.00054794,120]
[354427961,1740486643178,-500.0,0.00054794,120]
[354427963,1740486643190,-500.0,0.00054794,120]
[354427964,1740486643199,-500.0,0.00054794,120]
[354427965,1740486643209,-500.0,0.00054794,120]
[354427966,1740486643218,-502.87608747,0.00054794,120]
[354427967,1740486643227,-500.0,0.00054794,120]
[354427968,1740486643236,-500.0,0.00054794,120]
[354427969,1740486643245,-500.0,0.00054794,120]
[354427970,1740486643255,-500.0,0.00054794,120]
[354427971,1740486643264,-500.0,0.00054794,120]
[354427972,1740486643274,-500.0,0.00054794,120]
[354427973,1740486643283,-500.0,0.00054794,120]
[354427974,1740486643292,-500.0,0.00054794,120]
[354427975,1740486643303,-500.0,0.00054794,120]
[354427976,1740486643312,-502.00388071,0.00054794,120]
[354427977,1740486643322,-500.0,0.00054794,120]
[354427978,1740486643332,-500.0,0.00054794,120]
[354427979,1740486643341,-500.0,0.00054794,120]
[354427980,1740486643350,-500.0,0.00054794,120]
[354427981,1740486643360,-500.0,0.00054794,120]
[354427982,1740486643369,-500.0,0.00054794,120]
[354427983,1740486643379,-500.0,0.00054794,120]
[354427984,1740486643388,-500.0,0.00054794,120]
[354427985,1740486643399,-500.0,0.00054794,120]
[354427986,1740486643479,-500.0,0.00054794,120]
[354427987,1740486643490,-296.10999999,0.00054794,120]
[354427988,1740486643501,-500.0,0.00055068,120]
[354427989,1740486643510,-500.0,0.00055068,120]
[354427990,1740486643520,-500.0,0.00055068,120]
[354427991,1740486643530,-1000.0,0.00055068,120]
[354427992,1740486643540,-1682.05449594,0.00055242,30]
[354427993,1740486643552,-1878.02542084,0.00055242,2]
[354427994,1740486643562,-35384.6382595,0.00055332,5]
[354427995,1740486643572,-3977.27646025,0.00055332,5]
[354427996,1740486643582,-160.0,0.00055341,90]
[354427997,1740486643591,-500.0,0.00055342,120]
[354427998,1740486643601,-500.0,0.00055342,120]
[354427999,1740486643611,-500.0,0.00055342,120]
[354428000,1740486643621,-500.0,0.00055342,120]
[354428001,1740486643631,-500.0,0.00055342,120]
[354428002,1740486643641,-573.03,0.00055342,120]
[354428003,1740486643651,-500.0,0.00055342,120]
[354428004,1740486643660,-500.0,0.00055342,120]
[354428005,1740486643670,-254.25483756,0.00055342,120]
[354428006,1740486643679,-500.0,0.00055342,120]
[354428007,1740486643690,-500.0,0.00055342,120]
[354428008,1740486643699,-500.0,0.00055342,120]
[354428009,1740486643709,-439.10720458,0.00055342,120]
[354428010,1740486643719,-500.0,0.00055342,120]
[354428011,1740486643728,-500.0,0.00055342,120]
[354428012,1740486643738,-500.0,0.00055342,120]
[354428013,1740486643748,-500.0,0.00055342,120]
[354428014,1740486643758,-508.24275279,0.00055342,120]
[354428015,1740486643768,-500.0,0.00055342,120]
[354428016,1740486643778,-542.2,0.00055342,120]
[354428017,1740486643788,-500.0,0.00055342,120]
[354428018,1740486643798,-500.0,0.00055342,120]
[354428019,1740486643808,-500.0,0.00055342,120]
[354428020,1740486643817,-583.8,0.00055342,120]
[354428021,1740486643827,-500.0,0.00055342,120]
[354428022,1740486643837,-626.44,0.00055342,120]
[354428023,1740486643846,-500.0,0.00055342,120]
[354428024,1740486643855,-500.0,0.00055342,120]
[354428025,1740486643865,-500.0,0.00055342,120]
[354428026,1740486643875,-500.0,0.00055342,120]
[354428027,1740486643884,-500.0,0.00055342,120]
[354428028,1740486643894,-500.0,0.00055342,120]
[354428029,1740486643904,-623.38,0.00055342,120]
[354428030,1740486643913,-542.11,0.00055342,120]
[354428031,1740486643923,-500.0,0.00055342,120]
[354428032,1740486643932,-500.0,0.00055342,120]
[354428033,1740486643942,-500.0,0.00055342,120]
[354428034,1740486643952,-574.88,0.00055342,120]
[354428035,1740486643962,-625.61,0.00055342,120]
[354428036,1740486643972,-683.86,0.00055342,120]
[354428037,1740486643981,-987.06,0.00055342,120]
[354428038,1740486643991,-500.0,0.00055342,120]
[354428039,1740486644000,-513.85421012,0.00055342,120]
[354428040,1740486644010,-500.0,0.00055342,120]
[354428041,1740486644020,-500.0,0.00055342,120]
[354428042,1740486644029,-500.0,0.00055342,120]
[354428043,1740486644039,-500.0,0.00055342,120]
[354428044,1740486644049,-500.0,0.00055342,120]
[354428045,1740486644058,-500.0,0.00055342,120]
[354428046,1740486644067,-667.86,0.00055342,120]
[354428047,1740486644076,-7683.15,0.00055342,120]
[354428048,1740486644085,-479.65248923,0.00055342,120]
[354428049,1740486644096,-1368.06,0.00055342,120]
[354428050,1740486644107,-500.0,0.00055342,120]
[354428051,1740486644117,-500.0,0.00055342,120]
[354428052,1740486644126,-500.0,0.00055342,120]
[354428053,1740486644135,-500.0,0.00055342,120]
[354428054,1740486644145,-1000.0,0.00055342,120]
[354428055,1740486644155,-2395.79,0.00055342,120]
[354428056,1740486644164,-500.0,0.00055342,120]
[354428057,1740486644173,-500.0,0.00055342,120]
[354428058,1740486644183,-500.0,0.00055342,120]
[354428059,1740486644192,-500.0,0.00055342,120]
[354428060,1740486644201,-500.0,0.00055342,120]
[354428061,1740486644210,-500.0,0.00055342,120]
[354428062,1740486644220,-500.0,0.00055342,120]
[354428063,1740486644230,-500.0,0.00055342,120]
[354428064,1740486644239,-500.0,0.00055342,120]
[354428065,1740486644248,-500.0,0.00055342,120]
[354428066,1740486644257,-500.0,0.00055342,120]
[354428067,1740486644267,-500.0,0.00055342,120]
[354428068,1740486644276,-500.0,0.00055342,120]
[354428069,1740486644285,-504.41319185,0.00055342,120]
[354428070,1740486644295,-635.92,0.00055342,120]
[354428071,1740486644304,-500.0,0.00055342,120]
[354428072,1740486644314,-500.0,0.00055342,120]
[354428073,1740486644323,-280.56054517,0.00055342,120]
[354428074,1740486644333,-1410.01,0.00055342,120]
[354428076,1740486644342,-500.0,0.00055342,120]
[354428077,1740486644352,-1256.69,0.00055342,120]
[354428079,1740486644362,-2599.98,0.00055342,120]
[354428081,1740486644372,-500.0,0.00055342,120]
[354428090,1740486644440,-500.0,0.00055342,120]
[354428091,1740486644456,-9829.16,0.00055342,120]
[354428092,1740486644465,-500.0,0.00055342,120]
[354428094,1740486644475,-500.0,0.00055342,120]
[354428095,1740486644484,-500.0,0.00055342,120]
[354428096,1740486644494,-1468.56,0.00055342,120]
[354428097,1740486644503,-856.65,0.00055342,120]
[354428098,1740486644512,-500.0,0.00055342,120]
[354428099,1740486644522,-1539.89,0.00055342,120]
[354428100,1740486644531,-500.0,0.00055342,120]
[354428101,1740486644541,-500.0,0.00055342,120]
[354428102,1740486644551,-6514.75,0.00055342,120]
[354428103,1740486644560,-586.4,0.00055342,120]
[354428104,1740486644570,-500.0,0.00055342,120]
[354428105,1740486644580,-931.35,0.00055342,120]
[354428106,1740486644590,-865.41,0.00055342,120]
[354428107,1740486644601,-500.0,0.00055342,120]
[354428108,1740486644610,-636.62,0.00055342,120]
[354428109,1740486644620,-502.3300511,0.00055342,120]
[354428110,1740486644629,-500.0,0.00055342,120]
[354428111,1740486644639,-500.0,0.00055342,120]
[354428112,1740486644649,-1135.43,0.00055342,120]
[354428113,1740486644658,-500.0,0.00055342,120]
[354428114,1740486644668,-1136.01,0.00055342,120]
[354428115,1740486644678,-500.0,0.00055342,120]
[354428116,1740486644688,-131708.31,0.00055342,7]
[354428117,1740486644698,-150.08820683,0.00055342,120]
[354428118,1740486644708,-615.81,0.00055342,120]
[354428119,1740486644718,-2917.81,0.00055342,3]
[354428120,1740486644728,-500.0,0.00055342,30]
[354428121,1740486644738,-500.0,0.00055342,120]
[354428122,1740486644748,-2804.61,0.00055342,120]
[354428123,1740486644758,-1068.79,0.00055342,120]
[354428124,1740486644769,-601.54,0.00055342,120]
[354428125,1740486644780,-4396.17,0.00055342,120]
[354428126,1740486644791,-730.05,0.00055342,120]
[354428127,1740486644805,-500.0,0.00055342,120]
[354428128,1740486644816,-500.0,0.00055342,120]
[354428129,1740486644826,-500.0,0.00055342,120]
[354428130,1740486644836,-500.0,0.00055342,120]
[354428131,1740486644845,-500.0,0.00055342,120]
[354428132,1740486644855,-500.0,0.00055342,120]
[354428133,1740486644865,-652.44,0.00055342,120]
[354428134,1740486644874,-500.0,0.00055342,120]
[354428135,1740486644899,-957.41,0.00055342,120]
[354428136,1740486644917,-1633.36,0.00055342,120]
[354428137,1740486644936,-500.0,0.00055342,120]
[354428138,1740486644957,-500.0,0.00055342,120]
[354428139,1740486644978,-1126.06,0.00055342,120]
[354428140,1740486644997,-504.23495781,0.00055342,2]
[354428141,1740486645017,-402.26113418,0.00055342,120]
[354428142,1740486645032,-18506.92,0.00055342,120]
[354428143,1740486645051,-695.05,0.00055342,120]
[354428144,1740486645069,-508.58728011,0.00055342,120]
[354428145,1740486645091,-502.33938947,0.00055342,120]
[354428146,1740486645107,-500.0,0.00055342,120]
[354428147,1740486645126,-500.0,0.00055342,120]
[354428148,1740486645142,-708.39,0.00055342,120]
[354428149,1740486645158,-500.0,0.00055342,120]
[354428150,1740486645174,-500.0,0.00055342,120]
[354428151,1740486645190,-4183.1,0.00055342,120]
[354428152,1740486645206,-500.0,0.00055342,120]
[354428153,1740486645222,-584.81,0.00055342,120]
[354428154,1740486645238,-507.09864654,0.00055342,120]
[354428155,1740486645253,-500.0,0.00055342,120]
[354428156,1740486645270,-25764.85,0.00055342,120]
[354428158,1740486645286,-500.0,0.00055342,120]
[354428159,1740486645302,-500.0,0.00055342,120]
[354428160,1740486645318,-500.0,0.00055342,120]
[354428161,1740486645334,-500.0,0.00055342,120]
[354428164,1740486645349,-500.0,0.00055342,120]
[354428166,1740486645363,-500.0,0.00055342,120]
[354428168,1740486645379,-535.8,0.00055342,120]
[354428169,1740486645394,-500.0,0.00055342,120]
[354428170,1740486645410,-332.88445044,0.00055342,120]
[354428171,1740486645425,-805.15,0.00055342,120]
[354428172,1740486645441,-1000.0,0.00055342,20]
[354428173,1740486645456,-500.0,0.00055342,120]
[354428174,1740486645471,-500.0,0.00055342,120]
[354428175,1740486645486,-2142.62,0.00055342,120]
[354428176,1740486645502,-506.91973998,0.00055342,120]
[354428177,1740486645517,-733.44,0.00055342,120]
[354428178,1740486645534,-500.0,0.00055342,120]
[354428179,1740486645552,-633.81,0.00055342,120]
[354428180,1740486645568,-500.0,0.00055342,120]
[354428182,1740486645578,-574.98,0.00055342,120]
[354428184,1740486645707,-500.0,0.00055342,120]
[354428185,1740486645728,-1864.83,0.00055342,120]
[354428186,1740486645739,-500.0,0.00055342,120]
[354428187,1740486645749,-500.0,0.00055342,120]
[354428188,1740486645760,-27694.65,0.00055342,6]
[354428189,1740486645769,-743.57,0.00055342,120]
[354428190,1740486645780,-500.0,0.00055373,15]
[354428191,1740486645790,-500.0,0.00055373,15]
[354428193,1740486645802,-500.0,0.00055373,15]
[354428194,1740486645813,-500.0,0.00055373,15]
[354428196,1740486645823,-412.55174326,0.00055373,15]
[354428197,1740486645834,-500.0,0.00055373,15]
[354428198,1740486645844,-500.0,0.00055373,15]
[354428199,1740486645854,-500.0,0.00055616,120]
[354428200,1740486645864,-500.0,0.00055616,120]
[354428201,1740486645874,-500.0,0.00055616,120]
[354428202,1740486645884,-151.0,0.000557,28]
[354428203,1740486645894,-5267.98689768,0.0005579,2]
[354428204,1740486645904,-100000.0,0.000558,120]
[354428205,1740486645914,-500.0,0.00055873,15]
[354428207,1740486645924,-500.0,0.00055873,15]
[354428209,1740486645934,-500.0,0.00055873,15]
[354428211,1740486645943,-500.0,0.00055873,14]
[354428213,1740486645952,-160.0,0.00055889,90]
[354428215,1740486645962,-500.0,0.0005589,120]
[354428217,1740486645972,-500.0,0.0005589,120]
[354428219,1740486645982,-500.0,0.0005589,120]
[354428221,1740486645992,-500.0,0.0005589,120]
[354428223,1740486646002,-500.0,0.0005589,120]
[354428225,1740486646011,-573.03,0.0005589,120]
[354428227,1740486646021,-500.0,0.0005589,120]
[354428229,1740486646030,-500.0,0.0005589,120]
[354428231,1740486646040,-500.0,0.0005589,120]
[354428233,1740486646051,-500.0,0.0005589,120]
[354428235,1740486646060,-500.0,0.0005589,120]
[354428237,1740486646070,-507.96865636,0.0005589,120]
[354428239,1740486646079,-500.0,0.0005589,120]
[354428241,1740486646088,-500.0,0.0005589,120]
[354428243,1740486646102,-534.58429925,0.0005589,120]
[354428245,1740486646112,-500.0,0.0005589,120]
[354428247,1740486646121,-542.2,0.0005589,120]
[354428249,1740486646131,-500.0,0.0005589,120]
[354428251,1740486646142,-500.0,0.0005589,120]
[354428253,1740486646152,-500.0,0.0005589,120]
[354428255,1740486646161,-583.8,0.0005589,120]
[354428257,1740486646172,-500.0,0.0005589,120]
[354428259,1740486646182,-626.44,0.0005589,120]
[354428261,1740486646192,-500.0,0.0005589,120]
[354428263,1740486646202,-500.0,0.0005589,120]
[354428265,1740486646211,-500.0,0.0005589,120]
[354428267,1740486646221,-500.0,0.0005589,120]
[354428270,1740486646230,-500.0,0.0005589,120]
[354428273,1740486646239,-500.0,0.0005589,120]
[354428276,1740486646249,-623.38,0.0005589,120]
[354428279,1740486646258,-542.11,0.0005589,120]
[354428282,1740486646268,-500.0,0.0005589,120]
[354428285,1740486646277,-500.0,0.0005589,120]
[354428288,1740486646287,-500.0,0.0005589,120]
[354428290,1740486646296,-574.88,0.0005589,120]
[354428292,1740486646306,-625.61,0.0005589,120]
[354428294,1740486646315,-683.86,0.0005589,120]
[354428296,1740486646325,-987.06,0.0005589,120]
[354428298,1740486646335,-500.0,0.0005589,120]
[354428300,1740486646345,-500.0,0.0005589,120]
[354428302,1740486646355,-495.4709574,0.0005589,120]
[354428304,1740486646365,-500.0,0.0005589,120]
[354428306,1740486646374,-500.0,0.0005589,120]
[354428308,1740486646384,-500.0,0.0005589,120]
[354428310,1740486646394,-667.86,0.0005589,120]
[354428312,1740486646404,-7683.15,0.0005589,120]
[354428314,1740486646413,-1368.06,0.0005589,120]
[354428315,1740486646423,-500.0,0.0005589,120]
[354428317,1740486646432,-500.0,0.0005589,120]
[354428319,1740486646442,-500.0,0.0005589,120]
[354428320,1740486646451,-500.0,0.0005589,120]
[354428321,1740486646461,-2395.79,0.0005589,120]
[354428322,1740486646471,-500.0,0.0005589,120]
[354428323,1740486646480,-500.0,0.0005589,120]
[354428324,1740486646490,-500.0,0.0005589,120]
[354428325,1740486646500,-500.0,0.0005589,120]
[354428326,1740486646511,-500.0,0.0005589,120]
[354428327,1740486646520,-500.0,0.0005589,120]
[354428328,1740486646531,-500.0,0.0005589,120]
[354428329,1740486646541,-500.0,0.0005589,120]
[354428330,1740486646553,-500.0,0.0005589,120]
[354428331,1740486646563,-500.0,0.0005589,120]
[354428332,1740486646573,-500.0,0.0005589,120]
[354428333,1740486646582,-635.92,0.0005589,120]
[354428334,1740486646592,-500.0,0.0005589,120]
[354428335,1740486646602,-1410.01,0.0005589,120]
[354428336,1740486646612,-500.0,0.0005589,120]
[354428337,1740486646622,-1256.69,0.0005589,120]
[354428338,1740486646632,-2599.98,0.0005589,120]
[354428339,1740486646642,-500.0,0.0005589,120]
[354428340,1740486646652,-500.0,0.0005589,120]
[354428341,1740486646662,-9829.16,0.0005589,120]
[354428342,1740486646672,-502.05442398,0.0005589,120]
[354428343,1740486646681,-500.0,0.0005589,120]
[354428344,1740486646691,-500.0,0.0005589,120]
[354428345,1740486646701,-1468.56,0.0005589,120]
[354428346,1740486646711,-856.65,0.0005589,120]
[354428347,1740486646721,-500.0,0.0005589,120]
[354428348,1740486646731,-1539.89,0.0005589,120]
[354428349,1740486646741,-500.0,0.0005589,120]
[354428350,1740486646750,-500.0,0.0005589,120]
[354428351,1740486646760,-6514.75,0.0005589,120]
[354428352,1740486646769,-586.4,0.0005589,120]
[354428353,1740486646779,-500.0,0.0005589,120]
[354428354,1740486646789,-931.35,0.0005589,120]
[354428355,1740486646800,-865.41,0.0005589,120]
[354428356,1740486646810,-500.0,0.0005589,120]
[354428357,1740486646819,-636.62,0.0005589,120]
[354428358,1740486646829,-500.0,0.0005589,120]
[354428359,1740486646839,-308.68176208,0.0005589,120]
[354428360,1740486646849,-500.0,0.0005589,120]
[354428361,1740486646859,-1135.43,0.0005589,120]
[354428362,1740486646869,-1136.01,0.0005589,120]
[354428363,1740486646879,-131708.31,0.0005589,7]
[354428364,1740486646889,-615.81,0.0005589,120]
[354428365,1740486646899,-2917.81,0.0005589,3]
[354428366,1740486646909,-500.0,0.0005589,30]
[354428367,1740486646918,-500.0,0.0005589,120]
[354428368,1740486646928,-2804.61,0.0005589,120]
[354428369,1740486646938,-1068.79,0.0005589,120]
[354428370,1740486646948,-601.54,0.0005589,120]
[354428371,1740486646958,-4396.17,0.0005589,120]
[354428372,1740486646968,-730.05,0.0005589,120]
[354428373,1740486646977,-500.0,0.0005589,120]
[354428374,1740486646987,-500.0,0.0005589,120]
[354428375,1740486646997,-504.77649228,0.0005589,120]
[354428376,1740486647006,-500.0,0.0005589,120]
[354428377,1740486647016,-500.0,0.0005589,120]
[354428378,1740486647026,-510.20781318,0.0005589,120]
[354428379,1740486647035,-652.44,0.0005589,120]
[354428380,1740486647045,-500.0,0.0005589,120]
[354428381,1740486647055,-957.41,0.0005589,120]
[354428382,1740486647065,-1633.36,0.0005589,120]
[354428383,1740486647075,-500.0,0.0005589,120]
[354428384,1740486647085,-1126.06,0.0005589,120]
[354428385,1740486647094,-18506.92,0.0005589,120]
[354428386,1740486647105,-695.05,0.0005589,120]
[354428387,1740486647117,-500.0,0.0005589,120]
[354428388,1740486647127,-500.0,0.0005589,120]
[354428389,1740486647213,-708.39,0.0005589,120]
[354428390,1740486647228,-500.0,0.0005589,120]
[354428391,1740486647238,-443.57890042,0.0005589,120]
[354428392,1740486647248,-4183.1,0.0005589,120]
[354428393,1740486647258,-150.02069452,0.0005589,120]
[354428394,1740486647267,-584.81,0.0005589,120]
[354428395,1740486647276,-500.0,0.0005589,120]
[354428396,1740486647286,-25764.85,0.0005589,120]
[354428397,1740486647296,-500.0,0.0005589,120]
[354428398,1740486647306,-500.0,0.0005589,120]
[354428399,1740486647315,-500.0,0.0005589,120]
[354428400,1740486647324,-500.0,0.0005589,120]
[354428401,1740486647333,-500.0,0.0005589,120]
[354428402,1740486647343,-535.8,0.0005589,120]
[354428403,1740486647352,-500.0,0.0005589,120]
[354428404,1740486647361,-805.15,0.0005589,120]
[354428405,1740486647371,-1000.0,0.0005589,20]
[354428406,1740486647380,-500.0,0.0005589,120]
[354428407,1740486647390,-2142.62,0.0005589,120]
[354428408,1740486647399,-733.44,0.0005589,120]
[354428409,1740486647408,-500.0,0.0005589,120]
[354428410,1740486647418,-633.81,0.0005589,120]
[354428411,1740486647427,-500.0,0.0005589,120]
[354428412,1740486647437,-574.98,0.0005589,120]
[354428413,1740486647446,-455.09280904,0.0005589,120]
[354428414,1740486647455,-1864.83,0.0005589,120]
[354428415,1740486647466,-553.67140224,0.0005589,120]
[354428416,1740486647475,-500.0,0.0005589,120]
[354428417,1740486647484,-27694.65,0.0005589,6]
[354428418,1740486647494,-743.57,0.0005589,120]
[354428419,1740486647503,-151.0,0.00056,24]
[354428420,1740486647512,-403.8959639,0.00056,120]
[354428421,1740486647522,-500.0,0.00056164,120]
[354428422,1740486647531,-500.0,0.00056164,120]
[354428423,1740486647540,-500.0,0.00056164,120]
[354428424,1740486647550,-500.0,0.00056164,120]
[354428425,1740486647559,-500.0,0.00056164,120]
[354428426,1740486647569,-500.0,0.00056164,120]
[354428427,1740486647579,-500.0,0.00056164,120]
[354428428,1740486647589,-500.0,0.00056164,2]
[354428429,1740486647598,-500.0,0.00056164,120]
[354428430,1740486647607,-544.17232376,0.00056164,120]
[354428431,1740486647617,-515.04465361,0.00056164,120]
[354428432,1740486647626,-500.0,0.00056164,120]
[354428433,1740486647635,-617.39,0.00056164,120]
[354428434,1740486647645,-500.0,0.00056164,120]
[354428435,1740486647654,-500.0,0.00056164,120]
[354428436,1740486647663,-500.0,0.00056164,120]
[354428437,1740486647673,-504.33498649,0.00056164,120]
[354428438,1740486647683,-500.0,0.00056164,120]
[354428439,1740486647692,-500.0,0.00056164,120]
[354428440,1740486647702,-500.0,0.00056164,120]
[354428441,1740486647712,-500.0,0.00056164,120]
[354428442,1740486647721,-500.0,0.00056164,120]
[354428443,1740486647731,-500.0,0.00056164,120]
[354428444,1740486647740,-721.77,0.00056164,120]
[354428445,1740486647750,-500.0,0.00056164,120]
[354428446,1740486647759,-503.1086429,0.00056164,120]
[354428447,1740486647769,-500.0,0.00056164,120]
[354428448,1740486647779,-503.37252406,0.00056164,120]
[354428449,1740486647788,-500.0,0.00056164,120]
[354428450,1740486647798,-524.3544,0.00056164,120]
[354428451,1740486647807,-500.0,0.00056164,120]
[354428452,1740486647817,-500.0,0.00056164,120]
[354428453,1740486647826,-502.50374051,0.00056164,120]
[354428454,1740486647835,-970.88,0.00056164,120]
[354428455,1740486647845,-250.0,0.00056164,120]
[354428456,1740486647854,-500.0,0.00056164,120]
[354428457,1740486647865,-500.0,0.00056164,120]
[354428458,1740486647874,-500.0,0.00056164,120]
[354428459,1740486647883,-747.64,0.00056164,120]
[354428460,1740486647893,-503.28434814,0.00056164,120]
[354428461,1740486647903,-500.0,0.00056164,120]
[354428462,1740486647912,-689.24,0.00056164,120]
[354428463,1740486647921,-501.0893835,0.00056164,120]
[354428464,1740486647931,-500.0,0.00056164,120]
[354428465,1740486647940,-500.0,0.00056164,120]
[354428466,1740486647949,-500.0,0.00056164,120]
[354428467,1740486647958,-500.0,0.00056164,120]
[354428468,1740486647968,-922.08,0.00056164,120]
[354428469,1740486647977,-649.27,0.00056164,120]
[354428470,1740486647986,-500.0,0.00056164,120]
[354428471,1740486647995,-500.0,0.00056164,120]
[354428472,1740486648004,-500.0,0.00056164,120]
[354428473,1740486648014,-500.0,0.00056164,120]
[354428474,1740486648023,-600.0,0.00056164,120]
[354428475,1740486648033,-500.0,0.00056164,120]
[354428476,1740486648042,-500.0,0.00056164,120]
[354428477,1740486648052,-500.0,0.00056164,120]